[Event "Late-Titled-Tuesday-Blitz-April-30-2024"]
[Site "Chess.com"]
[Date "2024.04.30"]
[Round "5"]
[White "Arystanner"]
[Black "ArrestingPieces"]
[Result "1-0"]
[WhiteElo "2841"]
[BlackElo "2518"]
[TimeControl "180+1"]
[EndTime "14:56:20 PDT"]
[Termination "Arystanner won by resignation"]

1. d4 {[%clk 0:03:00.9]} 1... d5 {[%clk 0:02:59.6]} 2. Nf3 {[%clk 0:03:00.5]}
2... Nf6 {[%clk 0:02:59.7]} 3. c4 {[%clk 0:03:00.7]} 3... e6 {[%clk 0:03:00]} 4.
Nc3 {[%clk 0:03:01.4]} 4... c5 {[%clk 0:02:59.7]} 5. e3 {[%clk 0:03:00]} 5...
Nc6 {[%clk 0:02:58]} 6. cxd5 {[%clk 0:03:00.5]} 6... exd5 {[%clk 0:02:53.7]} 7.
Bb5 {[%clk 0:02:59.6]} 7... Bd6 {[%clk 0:02:46.7]} 8. dxc5 {[%clk 0:02:58.7]}
8... Bxc5 {[%clk 0:02:47]} 9. O-O {[%clk 0:02:59.6]} 9... O-O {[%clk 0:02:46.9]}
10. b3 {[%clk 0:03:00.2]} 10... Bg4 {[%clk 0:02:42.2]} 11. Bb2 {[%clk
0:02:59.9]} 11... d4 {[%clk 0:02:15.3]} 12. Na4 {[%clk 0:02:57.7]} 12... Bd6
{[%clk 0:01:59.2]} 13. Bxc6 {[%clk 0:02:56.7]} 13... bxc6 {[%clk 0:01:57.8]} 14.
Qxd4 {[%clk 0:02:54.9]} 14... Bxf3 {[%clk 0:01:56]} 15. gxf3 {[%clk 0:02:55.1]}
15... Re8 {[%clk 0:01:52]} 16. Qh4 {[%clk 0:02:54.5]} 16... Be5 {[%clk
0:01:50.5]} 17. Bxe5 {[%clk 0:02:54]} 17... Rxe5 {[%clk 0:01:50.8]} 18. f4
{[%clk 0:02:54.6]} 18... Rh5 {[%clk 0:01:50.5]} 19. Qg3 {[%clk 0:02:54.7]} 19...
Ne4 {[%clk 0:01:27.8]} 20. Qg4 {[%clk 0:02:53.3]} 20... Rh4 {[%clk 0:01:14.7]}
21. Qg2 {[%clk 0:02:52.1]} 21... f5 {[%clk 0:01:07]} 22. Rad1 {[%clk 0:02:50.8]}
22... Qf6 {[%clk 0:01:05.6]} 23. f3 {[%clk 0:02:50.8]} 23... Nc3 {[%clk
0:01:03.5]} 24. Nxc3 {[%clk 0:02:47.6]} 24... Qxc3 {[%clk 0:01:04.4]} 25. Qd2
{[%clk 0:02:47.7]} 25... Qf6 {[%clk 0:01:00]} 26. Qd6 {[%clk 0:02:46.2]} 26...
Rf8 {[%clk 0:00:55.7]} 27. Qxf6 {[%clk 0:02:46]} 27... Rxf6 {[%clk 0:00:56.6]}
28. Rd8+ {[%clk 0:02:46.4]} 28... Kf7 {[%clk 0:00:56.3]} 29. Rd7+ {[%clk
0:02:46]} 29... Kf8 {[%clk 0:00:55.9]} 30. Rxa7 {[%clk 0:02:41.6]} 30... Rd6
{[%clk 0:00:55.9]} 31. Rf2 {[%clk 0:02:39.5]} 31... Rhh6 {[%clk 0:00:54.7]} 32.
Kf1 {[%clk 0:02:28.3]} 32... Rhg6 {[%clk 0:00:53.2]} 33. Ra5 {[%clk 0:02:22.2]}
33... Rd1+ {[%clk 0:00:50.5]} 34. Ke2 {[%clk 0:02:21.8]} 34... Rgg1 {[%clk
0:00:51.2]} 35. Rxf5+ {[%clk 0:02:21.9]} 35... Kg8 {[%clk 0:00:50]} 36. Rg2
{[%clk 0:02:15.7]} 36... Rxg2+ {[%clk 0:00:46.4]} 37. Kxd1 {[%clk 0:02:15.6]}
37... Rxa2 {[%clk 0:00:47.3]} 38. h4 {[%clk 0:02:13]} 38... Rb2 {[%clk
0:00:45.9]} 39. Rc5 {[%clk 0:02:10.7]} 39... Rxb3 {[%clk 0:00:45.2]} 40. Kd2
{[%clk 0:02:11.4]} 40... Rb6 {[%clk 0:00:35.3]} 41. Kd3 {[%clk 0:02:11.8]} 41...
Kf7 {[%clk 0:00:35.7]} 42. Ra5 {[%clk 0:02:11.8]} 42... Ke6 {[%clk 0:00:35.2]}
43. f5+ {[%clk 0:02:11.8]} 43... Kf6 {[%clk 0:00:34.6]} 44. f4 {[%clk
0:02:08.8]} 44... Rb1 {[%clk 0:00:26.6]} 45. Rc5 {[%clk 0:02:07.4]} 45... Rb6
{[%clk 0:00:25.7]} 46. Ke4 {[%clk 0:02:07.4]} 46... h6 {[%clk 0:00:23.2]} 47. h5
{[%clk 0:02:07.5]} 47... Ra6 {[%clk 0:00:23.2]} 48. Kf3 {[%clk 0:02:08]} 48...
Rb6 {[%clk 0:00:23.2]} 49. Kg4 {[%clk 0:02:08.6]} 49... Ra6 {[%clk 0:00:19.7]}
50. e4 {[%clk 0:02:09.1]} 50... Rb6 {[%clk 0:00:18.9]} 51. e5+ {[%clk
0:02:09.7]} 51... Kf7 {[%clk 0:00:19.5]} 52. Ra5 {[%clk 0:02:10.2]} 52... Rb7
{[%clk 0:00:18.8]} 53. Kf3 {[%clk 0:02:07.2]} 53... Rc7 {[%clk 0:00:18]} 54. Rc5
{[%clk 0:02:05.9]} 54... Ke7 {[%clk 0:00:17.3]} 55. Ke4 {[%clk 0:02:06.6]} 55...
Kd7 {[%clk 0:00:17.7]} 56. Rc1 {[%clk 0:02:06.3]} 56... Rb7 {[%clk 0:00:16.3]}
57. Rg1 {[%clk 0:01:59.1]} 57... Rb4+ {[%clk 0:00:14.3]} 58. Ke3 {[%clk
0:01:58.1]} 58... Rb3+ {[%clk 0:00:14.5]} 59. Ke2 {[%clk 0:01:55.9]} 59... Rb2+
{[%clk 0:00:14.7]} 60. Kd3 {[%clk 0:01:56]} 60... Rb3+ {[%clk 0:00:14.2]} 61.
Kc4 {[%clk 0:01:55.8]} 61... Rf3 {[%clk 0:00:14.6]} 62. Rxg7+ {[%clk 0:01:56]}
62... Kc8 {[%clk 0:00:15.3]} 63. Kc5 {[%clk 0:01:55.8]} 63... Rxf4 {[%clk
0:00:15.4]} 64. f6 {[%clk 0:01:56.2]} 64... Rf5 {[%clk 0:00:14.9]} 65. Kd6
{[%clk 0:01:56.6]} 65... c5 {[%clk 0:00:15.1]} 66. f7 {[%clk 0:01:56.9]} 66...
c4 {[%clk 0:00:15.7]} 67. Rg8+ {[%clk 0:01:57.2]} 67... Kb7 {[%clk 0:00:16.1]}
68. f8=Q {[%clk 0:01:58.1]} 68... Rxf8 {[%clk 0:00:16]} 69. Rxf8 {[%clk
0:01:59]} 1-0

[Event "Late-Titled-Tuesday-Blitz-April-30-2024"]
[Site "Chess.com"]
[Date "2024.04.30"]
[Round "5"]
[White "ferdipy"]
[Black "disciplinedbrat"]
[Result "0-1"]
[WhiteElo "2281"]
[BlackElo "2432"]
[TimeControl "180+1"]
[EndTime "14:56:23 PDT"]
[Termination "disciplinedbrat won by resignation"]

1. e4 {[%clk 0:03:00.9]} 1... Nc6 {[%clk 0:03:00]} 2. d4 {[%clk 0:02:59.4]} 2...
d5 {[%clk 0:03:00]} 3. exd5 {[%clk 0:02:58.8]} 3... Qxd5 {[%clk 0:02:58.2]} 4.
Nf3 {[%clk 0:02:52.1]} 4... Bg4 {[%clk 0:02:56.5]} 5. Be2 {[%clk 0:02:51.7]}
5... O-O-O {[%clk 0:02:52.1]} 6. Be3 {[%clk 0:02:50.7]} 6... e5 {[%clk
0:02:47.4]} 7. O-O {[%clk 0:02:43.1]} 7... exd4 {[%clk 0:02:34.6]} 8. Bf4 {[%clk
0:02:37.8]} 8... Kb8 {[%clk 0:02:27.1]} 9. Nbd2 {[%clk 0:02:17.4]} 9... Bf5
{[%clk 0:02:17.3]} 10. Bc4 {[%clk 0:02:16.4]} 10... Qd7 {[%clk 0:01:58.8]} 11.
Re1 {[%clk 0:02:15.2]} 11... f6 {[%clk 0:01:56]} 12. a3 {[%clk 0:01:56.2]} 12...
g5 {[%clk 0:01:52.9]} 13. Bg3 {[%clk 0:01:55.7]} 13... h5 {[%clk 0:01:52.7]} 14.
h4 {[%clk 0:01:55.2]} 14... gxh4 {[%clk 0:01:47.7]} 15. Nxh4 {[%clk 0:01:54.5]}
15... Nh6 {[%clk 0:01:27.5]} 16. Qxh5 {[%clk 0:01:46.3]} 16... Bxc2 {[%clk
0:01:06.2]} 17. Be6 {[%clk 0:01:33.4]} 17... Qg7 {[%clk 0:01:05.3]} 18. Qb5
{[%clk 0:01:28.3]} 18... a6 {[%clk 0:01:00]} 19. Qc4 {[%clk 0:01:26.3]} 19... d3
{[%clk 0:00:51.4]} 20. b4 {[%clk 0:01:23.1]} 20... Rd4 {[%clk 0:00:38.5]} 21.
Qc3 {[%clk 0:01:23]} 21... Bd6 {[%clk 0:00:29.9]} 22. Bxd6 {[%clk 0:01:15.5]}
22... Rxh4 {[%clk 0:00:28.5]} 23. Bg3 {[%clk 0:01:13.8]} 23... Rh5 {[%clk
0:00:23.5]} 24. Nf3 {[%clk 0:01:12.9]} 24... Nf5 {[%clk 0:00:20.3]} 25. Bh2
{[%clk 0:01:04.5]} 25... Nh4 {[%clk 0:00:18.6]} 26. Nxh4 {[%clk 0:00:16.2]}
26... Rxh4 {[%clk 0:00:19.5]} 27. f3 {[%clk 0:00:14.6]} 27... Rxh2 {[%clk
0:00:19.3]} 0-1

[Event "Late-Titled-Tuesday-Blitz-April-30-2024"]
[Site "Chess.com"]
[Date "2024.04.30"]
[Round "5"]
[White "Janh4"]
[Black "1g60-1"]
[Result "0-1"]
[WhiteElo "2193"]
[BlackElo "2432"]
[TimeControl "180+1"]
[EndTime "14:56:23 PDT"]
[Termination "1g60-1 won on time"]

1. d4 {[%clk 0:03:00.9]} 1... e6 {[%clk 0:02:59.6]} 2. Nc3 {[%clk 0:03:00.6]}
2... d5 {[%clk 0:02:59.3]} 3. Bf4 {[%clk 0:03:01.2]} 3... Nf6 {[%clk 0:02:58.4]}
4. Nb5 {[%clk 0:03:01.1]} 4... Na6 {[%clk 0:02:58.9]} 5. e3 {[%clk 0:03:00.6]}
5... c6 {[%clk 0:02:58.8]} 6. Nc3 {[%clk 0:03:01.2]} 6... Nc7 {[%clk 0:02:59.2]}
7. Nf3 {[%clk 0:03:00.8]} 7... Bb4 {[%clk 0:02:59.3]} 8. Bd3 {[%clk 0:02:57.2]}
8... Ne4 {[%clk 0:02:56]} 9. Bxe4 {[%clk 0:02:54.2]} 9... dxe4 {[%clk
0:02:56.4]} 10. Nd2 {[%clk 0:02:54.7]} 10... Nd5 {[%clk 0:02:51.2]} 11. Ncxe4
{[%clk 0:02:27]} 11... f5 {[%clk 0:02:38.1]} 12. Ng5 {[%clk 0:02:00.9]} 12...
Nxf4 {[%clk 0:02:28.8]} 13. exf4 {[%clk 0:01:58.6]} 13... O-O {[%clk 0:02:16.9]}
14. c3 {[%clk 0:01:55.2]} 14... Be7 {[%clk 0:02:15.5]} 15. Ngf3 {[%clk
0:01:52.5]} 15... c5 {[%clk 0:02:13.3]} 16. O-O {[%clk 0:01:46.7]} 16... Bd6
{[%clk 0:02:06.3]} 17. g3 {[%clk 0:01:45.2]} 17... b6 {[%clk 0:01:58.9]} 18. Re1
{[%clk 0:01:37.5]} 18... Qf6 {[%clk 0:01:54.7]} 19. Nc4 {[%clk 0:01:36.6]} 19...
Be7 {[%clk 0:01:49.8]} 20. Nce5 {[%clk 0:01:34.5]} 20... Qh6 {[%clk 0:01:39.9]}
21. dxc5 {[%clk 0:01:17]} 21... Bxc5 {[%clk 0:01:38]} 22. Qb3 {[%clk 0:00:57.7]}
22... Bb7 {[%clk 0:01:29.8]} 23. Rad1 {[%clk 0:00:56.5]} 23... Rad8 {[%clk
0:01:10.4]} 24. Rxd8 {[%clk 0:00:52.4]} 24... Rxd8 {[%clk 0:01:08.9]} 25. Rd1
{[%clk 0:00:53.1]} 25... Rd5 {[%clk 0:00:45.9]} 26. Rxd5 {[%clk 0:00:45.4]}
26... Bxd5 {[%clk 0:00:44]} 27. Qa4 {[%clk 0:00:45.6]} 27... Qh5 {[%clk
0:00:41.7]} 28. Kg2 {[%clk 0:00:36.8]} 28... h6 {[%clk 0:00:39.4]} 29. Qxa7
{[%clk 0:00:07.3]} 29... Bd6 {[%clk 0:00:34.3]} 0-1

[Event "Late-Titled-Tuesday-Blitz-April-30-2024"]
[Site "Chess.com"]
[Date "2024.04.30"]
[Round "5"]
[White "LeninGuerra"]
[Black "ViIIagra"]
[Result "0-1"]
[WhiteElo "2666"]
[BlackElo "2890"]
[TimeControl "180+1"]
[EndTime "14:56:24 PDT"]
[Termination "ViIIagra won by resignation"]

1. e4 {[%clk 0:03:00.9]} 1... Nc6 {[%clk 0:02:55.8]} 2. Nf3 {[%clk 0:02:48.9]}
2... d6 {[%clk 0:02:51.3]} 3. d4 {[%clk 0:02:48.7]} 3... Nf6 {[%clk 0:02:51.5]}
4. Bd3 {[%clk 0:02:48.3]} 4... e5 {[%clk 0:02:48.8]} 5. c3 {[%clk 0:02:47.5]}
5... g6 {[%clk 0:02:46.8]} 6. O-O {[%clk 0:02:40.4]} 6... Bg7 {[%clk 0:02:46.8]}
7. dxe5 {[%clk 0:02:40.2]} 7... dxe5 {[%clk 0:02:36.5]} 8. Bg5 {[%clk
0:02:36.3]} 8... h6 {[%clk 0:02:35.1]} 9. Bxf6 {[%clk 0:02:31.2]} 9... Qxf6
{[%clk 0:02:36]} 10. Nbd2 {[%clk 0:02:28.3]} 10... O-O {[%clk 0:02:36.5]} 11.
Qe2 {[%clk 0:02:21.8]} 11... Nd8 {[%clk 0:02:35.3]} 12. Bc4 {[%clk 0:02:16.9]}
12... Ne6 {[%clk 0:02:23.2]} 13. Bxe6 {[%clk 0:02:16]} 13... Bxe6 {[%clk
0:02:24.1]} 14. Rfd1 {[%clk 0:02:16]} 14... Rfd8 {[%clk 0:02:19.6]} 15. Nf1
{[%clk 0:02:16.2]} 15... Rxd1 {[%clk 0:02:10.4]} 16. Rxd1 {[%clk 0:02:14.9]}
16... Bxa2 {[%clk 0:02:10.6]} 17. Qb5 {[%clk 0:02:10.3]} 17... Qb6 {[%clk
0:02:06.7]} 18. Qxb6 {[%clk 0:01:48.5]} 18... axb6 {[%clk 0:02:07.6]} 19. Ra1
{[%clk 0:01:48.3]} 19... Ra6 {[%clk 0:02:07.5]} 20. N1d2 {[%clk 0:01:43.8]}
20... Be6 {[%clk 0:02:06.5]} 21. Rxa6 {[%clk 0:01:40.5]} 21... bxa6 {[%clk
0:02:07.4]} 22. Kf1 {[%clk 0:01:40.4]} 22... f6 {[%clk 0:02:06]} 23. Ke2 {[%clk
0:01:40.2]} 23... h5 {[%clk 0:02:04.4]} 24. Kd3 {[%clk 0:01:40.1]} 24... Bh6
{[%clk 0:02:04.9]} 25. Ne1 {[%clk 0:01:35.8]} 25... Kf7 {[%clk 0:02:04.4]} 26.
Nc2 {[%clk 0:01:35.6]} 26... Ke7 {[%clk 0:02:02.9]} 27. Nb4 {[%clk 0:01:35.3]}
27... a5 {[%clk 0:01:56]} 28. Nc2 {[%clk 0:01:32.4]} 28... b5 {[%clk 0:01:51.6]}
29. Ne3 {[%clk 0:01:16.1]} 29... Kd6 {[%clk 0:01:51]} 30. Nb1 {[%clk 0:01:06.8]}
30... c5 {[%clk 0:01:46.3]} 31. Na3 {[%clk 0:01:05.5]} 31... c4+ {[%clk
0:01:46]} 32. Ke2 {[%clk 0:01:04.2]} 32... Kc5 {[%clk 0:01:46.1]} 33. h3 {[%clk
0:01:00.3]} 33... b4 {[%clk 0:01:46]} 34. Nb1 {[%clk 0:00:54.8]} 34... f5 {[%clk
0:01:42.1]} 35. f3 {[%clk 0:00:46.8]} 35... a4 {[%clk 0:01:21.4]} 36. g4 {[%clk
0:00:28.3]} 36... fxe4 {[%clk 0:01:17.2]} 37. gxh5 {[%clk 0:00:25.5]} 37...
exf3+ {[%clk 0:01:14.4]} 38. Kxf3 {[%clk 0:00:26.4]} 38... gxh5 {[%clk 0:01:15]}
39. Nc2 {[%clk 0:00:23.4]} 39... b3 {[%clk 0:00:51.5]} 40. Ne3 {[%clk
0:00:21.2]} 40... Bxh3 {[%clk 0:00:48.3]} 41. Na3 {[%clk 0:00:17.7]} 41... Bxe3
{[%clk 0:00:46.3]} 42. Kxe3 {[%clk 0:00:18.6]} 42... Bf5 {[%clk 0:00:46.8]} 0-1

[Event "Late-Titled-Tuesday-Blitz-April-30-2024"]
[Site "Chess.com"]
[Date "2024.04.30"]
[Round "5"]
[White "QuintilianoR"]
[Black "JustinWang1234"]
[Result "1-0"]
[WhiteElo "2723"]
[BlackElo "2983"]
[TimeControl "180+1"]
[EndTime "14:56:27 PDT"]
[Termination "QuintilianoR won by checkmate"]

1. Nf3 {[%clk 0:02:59.2]} 1... Nf6 {[%clk 0:02:59.1]} 2. b3 {[%clk 0:02:59.2]}
2... d5 {[%clk 0:02:56.8]} 3. Bb2 {[%clk 0:02:59]} 3... Bf5 {[%clk 0:02:54]} 4.
g3 {[%clk 0:02:59]} 4... e6 {[%clk 0:02:53.8]} 5. Bg2 {[%clk 0:02:59.3]} 5... h6
{[%clk 0:02:52.5]} 6. O-O {[%clk 0:02:59.6]} 6... c5 {[%clk 0:02:52.8]} 7. d3
{[%clk 0:02:58.3]} 7... Nc6 {[%clk 0:02:52.8]} 8. Ne5 {[%clk 0:02:58.2]} 8...
Nxe5 {[%clk 0:02:43.1]} 9. Bxe5 {[%clk 0:02:59.1]} 9... Bd6 {[%clk 0:02:40]} 10.
Bb2 {[%clk 0:02:58.7]} 10... O-O {[%clk 0:02:38.3]} 11. Nd2 {[%clk 0:02:58.9]}
11... Bh7 {[%clk 0:02:19.7]} 12. e4 {[%clk 0:02:58.1]} 12... dxe4 {[%clk
0:02:05.9]} 13. dxe4 {[%clk 0:02:51.6]} 13... Nd7 {[%clk 0:01:55.3]} 14. Nc4
{[%clk 0:02:50.7]} 14... Bc7 {[%clk 0:01:55.3]} 15. a4 {[%clk 0:02:50.1]} 15...
Qe7 {[%clk 0:01:54.5]} 16. Qg4 {[%clk 0:02:35.9]} 16... Nf6 {[%clk 0:01:47.6]}
17. Qe2 {[%clk 0:02:34.8]} 17... Rab8 {[%clk 0:01:46.5]} 18. a5 {[%clk
0:02:34.1]} 18... Rfd8 {[%clk 0:01:42.4]} 19. Rad1 {[%clk 0:02:30.3]} 19... b5
{[%clk 0:01:38.5]} 20. axb6 {[%clk 0:02:29.4]} 20... axb6 {[%clk 0:01:38.1]} 21.
e5 {[%clk 0:02:23.4]} 21... Nd5 {[%clk 0:01:35]} 22. Nd6 {[%clk 0:02:23.9]}
22... Bg6 {[%clk 0:01:08.5]} 23. h4 {[%clk 0:02:20.4]} 23... Nb4 {[%clk
0:00:59.6]} 24. Be4 {[%clk 0:02:10]} 24... Bxe4 {[%clk 0:00:57.1]} 25. Nxe4
{[%clk 0:02:10.9]} 25... Nc6 {[%clk 0:00:55.5]} 26. f4 {[%clk 0:02:01.1]} 26...
b5 {[%clk 0:00:53.9]} 27. Rxd8+ {[%clk 0:01:56.6]} 27... Nxd8 {[%clk 0:00:53.9]}
28. Rd1 {[%clk 0:01:52.2]} 28... Nc6 {[%clk 0:00:54.1]} 29. Nf6+ {[%clk
0:01:32.4]} 29... gxf6 {[%clk 0:00:44.4]} 30. exf6 {[%clk 0:01:32.3]} 30... Qf8
{[%clk 0:00:44.6]} 31. Rd7 {[%clk 0:01:32]} 31... Bb6 {[%clk 0:00:38.8]} 32.
Qg4+ {[%clk 0:01:28.5]} 32... Kh8 {[%clk 0:00:38.6]} 33. Qh5 {[%clk 0:01:27.3]}
33... Nd8 {[%clk 0:00:35.1]} 34. Re7 {[%clk 0:01:20.8]} 34... c4+ {[%clk
0:00:30.9]} 35. Kh2 {[%clk 0:01:20.5]} 35... Kh7 {[%clk 0:00:25.7]} 36. f5
{[%clk 0:01:10.4]} 36... e5 {[%clk 0:00:19]} 37. Bxe5 {[%clk 0:01:05.7]} 37...
Ra8 {[%clk 0:00:10.2]} 38. Qg6+ {[%clk 0:00:58.8]} 38... Kh8 {[%clk 0:00:09.8]}
39. Qg7+ {[%clk 0:00:59]} 39... Qxg7 {[%clk 0:00:07.1]} 40. fxg7+ {[%clk
0:00:59.9]} 40... Kh7 {[%clk 0:00:08]} 41. Re8 {[%clk 0:00:59.8]} 41... f6
{[%clk 0:00:04]} 42. g8=Q# {[%clk 0:00:58.4]} 1-0

[Event "Late-Titled-Tuesday-Blitz-April-30-2024"]
[Site "Chess.com"]
[Date "2024.04.30"]
[Round "5"]
[White "FabianoCaruana"]
[Black "HamedWafa4"]
[Result "1-0"]
[WhiteElo "3089"]
[BlackElo "2730"]
[TimeControl "180+1"]
[EndTime "14:56:29 PDT"]
[Termination "FabianoCaruana won by resignation"]

1. d4 {[%clk 0:03:00.9]} 1... Nf6 {[%clk 0:02:54.4]} 2. c4 {[%clk 0:03:01]} 2...
e6 {[%clk 0:02:53.2]} 3. g4 {[%clk 0:03:01.5]} 3... d5 {[%clk 0:02:35.5]} 4. g5
{[%clk 0:02:59.4]} 4... Ne4 {[%clk 0:02:34.7]} 5. Nc3 {[%clk 0:02:46.8]} 5...
Bb4 {[%clk 0:02:25.6]} 6. Qb3 {[%clk 0:02:40.6]} 6... Bxc3+ {[%clk 0:02:19.8]}
7. bxc3 {[%clk 0:02:39.6]} 7... Nxg5 {[%clk 0:02:06.9]} 8. Bg2 {[%clk
0:02:36.7]} 8... Ne4 {[%clk 0:02:06.2]} 9. Nf3 {[%clk 0:02:34.7]} 9... c6 {[%clk
0:02:00.1]} 10. h4 {[%clk 0:02:32.6]} 10... Qb6 {[%clk 0:01:58.3]} 11. Qc2
{[%clk 0:02:19.1]} 11... Nd7 {[%clk 0:01:46.6]} 12. Ng5 {[%clk 0:02:16.2]} 12...
Nxg5 {[%clk 0:01:44.4]} 13. hxg5 {[%clk 0:02:15.3]} 13... Nf8 {[%clk 0:01:44.5]}
14. Bf4 {[%clk 0:02:08.9]} 14... Qa6 {[%clk 0:01:17.4]} 15. c5 {[%clk
0:02:06.3]} 15... b6 {[%clk 0:01:13]} 16. Bd6 {[%clk 0:02:03.1]} 16... bxc5
{[%clk 0:01:11.7]} 17. dxc5 {[%clk 0:01:47.9]} 17... Qa3 {[%clk 0:00:53.6]} 18.
Rb1 {[%clk 0:01:40.2]} 18... Ba6 {[%clk 0:00:48.5]} 19. Rh4 {[%clk 0:01:31.6]}
19... Bb5 {[%clk 0:00:40.8]} 20. Rhb4 {[%clk 0:01:17.7]} 20... a5 {[%clk
0:00:24.1]} 21. Rxb5 {[%clk 0:01:03.7]} 21... cxb5 {[%clk 0:00:24.4]} 22. Rxb5
{[%clk 0:01:04.3]} 22... Rd8 {[%clk 0:00:21.8]} 23. Bc7 {[%clk 0:00:55.6]} 23...
Ra8 {[%clk 0:00:19]} 24. c4 {[%clk 0:00:26.3]} 24... Nd7 {[%clk 0:00:11.3]} 25.
Bd6 {[%clk 0:00:24.5]} 25... Rc8 {[%clk 0:00:10.1]} 26. cxd5 {[%clk 0:00:23.4]}
26... exd5 {[%clk 0:00:05.7]} 27. Rb3 {[%clk 0:00:21]} 27... Rxc5 {[%clk
0:00:04.5]} 28. Bxc5 {[%clk 0:00:20.9]} 28... Qxc5 {[%clk 0:00:04.7]} 29. Qxc5
{[%clk 0:00:21.1]} 29... Nxc5 {[%clk 0:00:05.3]} 30. Rb8+ {[%clk 0:00:21.7]} 1-0

[Event "Late-Titled-Tuesday-Blitz-April-30-2024"]
[Site "Chess.com"]
[Date "2024.04.30"]
[Round "5"]
[White "Jakhongir-Vakhidov"]
[Black "Boninknights"]
[Result "1-0"]
[WhiteElo "2739"]
[BlackElo "2369"]
[TimeControl "180+1"]
[EndTime "14:56:33 PDT"]
[Termination "Jakhongir-Vakhidov won by resignation"]

1. c4 {[%clk 0:03:00.9]} 1... Nf6 {[%clk 0:02:58.9]} 2. Nc3 {[%clk 0:03:00.7]}
2... g6 {[%clk 0:02:58.3]} 3. g3 {[%clk 0:03:01.3]} 3... Bg7 {[%clk 0:02:57.6]}
4. Bg2 {[%clk 0:03:01.9]} 4... O-O {[%clk 0:02:57.2]} 5. d4 {[%clk 0:03:02.6]}
5... d6 {[%clk 0:02:55]} 6. Nf3 {[%clk 0:03:03.1]} 6... c6 {[%clk 0:02:54]} 7.
O-O {[%clk 0:03:03.2]} 7... Qa5 {[%clk 0:02:53.2]} 8. e4 {[%clk 0:03:02.6]} 8...
e5 {[%clk 0:02:51.6]} 9. h3 {[%clk 0:02:59.8]} 9... Nbd7 {[%clk 0:02:49.4]} 10.
Re1 {[%clk 0:02:57]} 10... exd4 {[%clk 0:02:45.9]} 11. Nxd4 {[%clk 0:02:57.9]}
11... Ne5 {[%clk 0:02:44.7]} 12. Bf1 {[%clk 0:02:56.2]} 12... Be6 {[%clk
0:02:41.9]} 13. Nxe6 {[%clk 0:02:53.4]} 13... fxe6 {[%clk 0:02:39.5]} 14. Kg2
{[%clk 0:02:50.7]} 14... Rad8 {[%clk 0:02:32.9]} 15. f4 {[%clk 0:02:34.3]} 15...
Nf7 {[%clk 0:02:31.4]} 16. Bd2 {[%clk 0:02:21.2]} 16... Qc7 {[%clk 0:02:28.3]}
17. Rc1 {[%clk 0:02:18.4]} 17... Qb8 {[%clk 0:02:25.9]} 18. Be3 {[%clk
0:01:44.7]} 18... e5 {[%clk 0:02:16.6]} 19. Qa4 {[%clk 0:01:37.8]} 19... a6
{[%clk 0:02:12.4]} 20. Be2 {[%clk 0:01:10]} 20... exf4 {[%clk 0:02:07.9]} 21.
gxf4 {[%clk 0:01:10.2]} 21... Rde8 {[%clk 0:01:59.1]} 22. Bf3 {[%clk 0:01:09.6]}
22... h6 {[%clk 0:01:55.8]} 23. Rcd1 {[%clk 0:01:09.3]} 23... g5 {[%clk
0:01:55.1]} 24. c5 {[%clk 0:00:52.9]} 24... dxc5 {[%clk 0:01:49.4]} 25. e5
{[%clk 0:00:50.5]} 25... Nh7 {[%clk 0:01:27.7]} 26. Bxc5 {[%clk 0:00:50.3]}
26... gxf4 {[%clk 0:01:24.7]} 27. Bxf8 {[%clk 0:00:50.1]} 27... Nxf8 {[%clk
0:01:19.5]} 28. Qxf4 {[%clk 0:00:47.9]} 28... Ng6 {[%clk 0:01:15.2]} 29. Qg3
{[%clk 0:00:45.5]} 29... Nfxe5 {[%clk 0:01:10.5]} 30. Bh5 {[%clk 0:00:44]} 30...
Re6 {[%clk 0:01:04.6]} 31. Kh1 {[%clk 0:00:39.4]} 31... Kh7 {[%clk 0:01:00.5]}
32. Ne4 {[%clk 0:00:30]} 32... Qf8 {[%clk 0:00:46.2]} 33. Rf1 {[%clk 0:00:30.3]}
33... Qb4 {[%clk 0:00:43.4]} 34. Qg2 {[%clk 0:00:22.2]} 34... Nh4 {[%clk
0:00:37.6]} 35. Qc2 {[%clk 0:00:22]} 35... Kh8 {[%clk 0:00:26.8]} 36. Rd8+
{[%clk 0:00:20.7]} 1-0

[Event "Late-Titled-Tuesday-Blitz-April-30-2024"]
[Site "Chess.com"]
[Date "2024.04.30"]
[Round "5"]
[White "PenguinPacks"]
[Black "GaiozNigalidze"]
[Result "0-1"]
[WhiteElo "2457"]
[BlackElo "2742"]
[TimeControl "180+1"]
[EndTime "14:56:34 PDT"]
[Termination "GaiozNigalidze won by resignation"]

1. e4 {[%clk 0:03:00.9]} 1... d6 {[%clk 0:02:56.4]} 2. d4 {[%clk 0:03:00.5]}
2... c6 {[%clk 0:02:56.6]} 3. Nc3 {[%clk 0:03:00.4]} 3... Qc7 {[%clk 0:02:56.2]}
4. Be3 {[%clk 0:02:58.3]} 4... e5 {[%clk 0:02:50.9]} 5. Nf3 {[%clk 0:02:58.1]}
5... Bg4 {[%clk 0:02:49.4]} 6. h3 {[%clk 0:02:57.3]} 6... Bh5 {[%clk 0:02:47.6]}
7. Be2 {[%clk 0:02:57.6]} 7... Be7 {[%clk 0:02:44.1]} 8. a4 {[%clk 0:02:48.7]}
8... Nf6 {[%clk 0:02:41.4]} 9. O-O {[%clk 0:02:47.5]} 9... O-O {[%clk
0:02:38.2]} 10. Qd2 {[%clk 0:02:20.9]} 10... Nbd7 {[%clk 0:02:36.7]} 11. Rad1
{[%clk 0:02:17.7]} 11... Rfd8 {[%clk 0:02:28.2]} 12. Rfe1 {[%clk 0:02:05.5]}
12... a5 {[%clk 0:02:25.3]} 13. d5 {[%clk 0:02:02]} 13... Bg6 {[%clk 0:02:03.3]}
14. Bd3 {[%clk 0:01:57.8]} 14... cxd5 {[%clk 0:01:59.5]} 15. Nb5 {[%clk
0:01:48.6]} 15... Qc8 {[%clk 0:01:55.4]} 16. Nh4 {[%clk 0:01:28.4]} 16... dxe4
{[%clk 0:01:38.4]} 17. Nxg6 {[%clk 0:01:24.4]} 17... hxg6 {[%clk 0:01:39.3]} 18.
Be2 {[%clk 0:01:21.3]} 18... d5 {[%clk 0:01:38.8]} 19. Bg5 {[%clk 0:01:20.3]}
19... Qc5 {[%clk 0:01:26.9]} 20. c3 {[%clk 0:01:12.1]} 20... b6 {[%clk
0:01:21.6]} 21. Be3 {[%clk 0:01:12]} 21... Qc6 {[%clk 0:01:21.1]} 22. Bg5 {[%clk
0:01:12.2]} 22... Nf8 {[%clk 0:01:18.1]} 23. Qe3 {[%clk 0:01:06]} 23... Ne6
{[%clk 0:01:16.7]} 24. Bh4 {[%clk 0:01:02.4]} 24... Nc5 {[%clk 0:01:12.5]} 25.
Bg3 {[%clk 0:00:57.5]} 25... Nxa4 {[%clk 0:00:48.8]} 26. Bxe5 {[%clk 0:00:57.4]}
26... Nxb2 {[%clk 0:00:49.1]} 27. Rb1 {[%clk 0:00:54.8]} 27... Nc4 {[%clk
0:00:46.8]} 28. Bxc4 {[%clk 0:00:55.2]} 28... Qxc4 {[%clk 0:00:45.4]} 29. Qxb6
{[%clk 0:00:53.7]} 29... Bc5 {[%clk 0:00:41.1]} 30. Qb7 {[%clk 0:00:47.9]} 30...
a4 {[%clk 0:00:38]} 31. Bd6 {[%clk 0:00:26.3]} 31... a3 {[%clk 0:00:34]} 32. Bc7
{[%clk 0:00:20.8]} 32... a2 {[%clk 0:00:26.6]} 33. Ra1 {[%clk 0:00:20.9]} 33...
Rdc8 {[%clk 0:00:25.5]} 34. Nd6 {[%clk 0:00:20.3]} 34... Bxd6 {[%clk 0:00:24.9]}
35. Bxd6 {[%clk 0:00:21.2]} 35... Qxc3 {[%clk 0:00:24]} 36. Rf1 {[%clk
0:00:21.6]} 36... d4 {[%clk 0:00:23.2]} 37. Rxa2 {[%clk 0:00:22]} 37... Rxa2
{[%clk 0:00:22.1]} 0-1